bitfinex-derivatives/quotes_ETHF0:USTF0_20250810
["timestamp","ask_amount","ask_price","bid_price","bid_amount"]
[1754792617404,2.0339,4276.7,4276.6,11.51107455]
[1754792617608,2.0339,4276.7,4276.6,11.84097455]
[1754792618107,2.50143,4276.7,4276.6,11.51107455]
[1754792618503,2.0339,4276.7,4276.6,11.51107455]
[1754792618709,0.7123,4276.8,4276.7,0.7765]
[1754792618906,0.005,4277.1,4276.6,11.51107455]
[1754792619211,0.46732,4278.7,4277.2,0.46747]
[1754792619409,0.7123,4278.6,4278.3,0.7765]
[1754792619604,0.7123,4278.9,4278.2,3.6448]
[1754792619806,0.7123,4278.8,4278.7,3.9843]
[1754792620003,0.46727,4279.2,4278.7,3.9843]
[1754792620200,1.3216,4279.1,4278.8,2.36278813]
[1754792620404,2.0339,4279.0,4278.8,1.58628813]
[1754792620600,2.0339,4279.0,4278.9,1.58628813]
[1754792620800,0.7123,4278.9,4278.8,1.58628813]
[1754792621014,2.0339,4278.9,4278.8,1.58628813]
[1754792621212,2.0339,4278.9,4278.0,3.2078]
[1754792621213,3.20216,4278.8,4278.0,3.2078]
[1754792621407,2.0339,4278.1,4278.0,3.2078]
[1754792622612,2.79572325,4278.1,4278.0,3.2078]
[1754792623111,5.76962006,4278.1,4278.0,3.2078]
[1754792623312,6.06575757,4278.1,4278.0,3.2078]
[1754792623513,2.0339,4277.8,4277.1,3.2078]
[1754792623708,0.46747,4277.3,4277.1,3.2078]
[1754792623912,0.46747,4277.3,4277.2,1.7277]
[1754792624216,1.22953184,4277.3,4277.2,1.7277]
[1754792624416,1.99003184,4277.3,4277.2,1.7277]
[1754792624605,1.99003184,4277.3,4277.1,3.2078]
[1754792624606,0.7605,4277.2,4277.1,3.7785]
[1754792624919,0.76206184,4277.2,4277.1,3.6544]
[1754792625112,1.52256184,4277.2,4277.1,3.6544]
[1754792625410,2.08366184,4277.2,4277.1,3.7785]
[1754792625611,2.79596184,4277.2,4277.1,3.7785]
[1754792626118,0.76206184,4277.2,4277.1,10.02565374]
[1754792626310,0.98132391,4277.2,4277.1,10.02565374]
[1754792629006,0.31546184,4277.2,4277.1,10.02565374]
[1754792629220,0.53472391,4277.2,4277.1,10.52565374]
[1754792629815,1.52008098,4277.2,4277.1,10.52565374]
[1754792630210,0.53472391,4277.2,4277.1,10.52565374]
[1754792631418,0.31546184,4277.2,4277.1,10.52565374]
[1754792631615,1.29519768,4277.2,4277.1,10.52565374]
[1754792632018,2.00749768,4277.2,4277.1,10.52565374]
[1754792632217,0.53469768,4277.2,4277.1,10.52565374]
[1754792634217,0.53469768,4277.2,4277.1,9.26285368]
[1754792635316,0.53469768,4277.2,4276.6,0.00532081]
[1754792635317,4.86835676,4277.2,4276.6,0.00532081]
[1754792635621,3.32285622,4277.1,4277.0,1.2811]
[1754792635822,1.92049009,4277.1,4277.0,27.1011]
[1754792636024,3.32285202,4277.1,4277.0,27.1011]
[1754792636225,1.69203584,4277.1,4277.0,27.1011]
[1754792636818,0.97973584,4277.1,4277.0,27.1011]
[1754792637015,0.5,4277.2,4276.6,0.46754]
[1754792637218,0.5,4277.2,4273.9,2.33914]
[1754792637219,2.0339,4276.1,4276.0,5.1828]
[1754792637416,0.7605,4276.1,4276.0,5.9549]
[1754792637621,1.4728,4276.1,4276.0,11.04505374]
[1754792637927,2.0339,4276.1,4276.0,5.1828]
[1754792638921,0.7123,4276.4,4276.1,0.7721]
[1754792639223,0.7123,4276.4,4276.3,1.3428]
[1754792639426,1.4728,4276.4,4276.3,1.3428]
[1754792639824,2.0339,4276.4,4276.3,1.3428]
[1754792640018,2.0339,4276.4,4276.0,5.8932]
[1754792640019,0.46757,4276.3,4276.0,5.1828]
[1754792640220,2.0339,4276.1,4276.0,10.27295374]
[1754792640626,0.7123,4276.1,4276.0,11.04505374]
[1754792641028,2.08267528,4276.1,4276.0,11.04505374]
[1754792641223,2.64377528,4276.1,4276.0,10.27295374]
[1754792641823,2.64377528,4276.1,4276.0,10.84365374]
[1754792642124,0.60987528,4276.1,4276.0,38.30615374]
[1754792643018,0.60987528,4276.1,4276.0,5.1828]
[1754792643221,2.64377528,4276.1,4276.0,5.1828]
[1754792643427,2.08267528,4276.1,4276.0,11.61575374]
[1754792643626,1.32217528,4276.1,4276.0,12.32615374]
[1754792643928,1.32217528,4276.1,4276.0,11.76816877]
[1754792644128,2.64377528,4276.1,4276.0,5.33521503]
[1754792644922,2.08267528,4276.1,4276.0,11.76816877]
[1754792645122,2.66977528,4276.1,4276.0,11.76816877]
[1754792645427,2.66977528,4276.1,4276.0,10.99606877]
[1754792645630,2.08267528,4276.1,4276.0,9.64406877]
[1754792645826,3.2078,4273.0,4270.4,2.09667751]
[1754792646125,3.2078,4273.0,4264.6,0.7666]
[1754792646126,0.46815,4271.0,4270.5,4.56e-06]
[1754792646324,0.46848,4268.1,4266.6,6.90629569]
[1754792646520,0.46858,4267.2,4265.6,0.7666]
[1754792646721,1.22103514,4266.6,4265.7,6.90629569]
[1754792646930,0.4687,4266.0,4265.5,0.7666]
[1754792647126,0.46872,4265.8,4264.2,6.90629569]
[1754792647328,3.2078,4265.1,4264.5,0.5692]
[1754792647522,3.2078,4265.1,4264.4,0.7666]
[1754792647523,3.2078,4264.6,4264.4,1.3358]
[1754792647830,3.2078,4264.6,4264.5,8.24209569]
[1754792648123,3.2078,4264.6,4263.9,0.46893]
[1754792648330,3.2078,4264.6,4264.0,0.7539]
[1754792648524,3.2078,4264.6,4264.2,2.0897]
[1754792648721,2.99876621,4264.5,4264.0,6.90629569]
[1754792648922,3.2078,4265.2,4264.5,6.90629569]
[1754792649120,3.2078,4265.9,4265.1,0.7539]
[1754792649331,3.03410491,4266.0,4265.9,2.0897]
[1754792649525,3.2078,4266.9,4265.5,1.5205]
[1754792649832,3.03410491,4266.2,4266.1,2.0897]
[1754792650026,3.0704837,4267.2,4267.0,0.46859]
[1754792650324,3.2078,4268.9,4268.3,7.66019569]
[1754792650630,3.0704837,4268.8,4268.3,0.7539]
[1754792650824,1.6067,4268.7,4268.4,9.32679875]
[1754792651025,3.2078,4268.5,4267.7,7.66019569]
[1754792651225,3.2078,4268.5,4267.8,16.23309444]
[1754792651430,3.2078,4268.4,4267.8,16.70158444]
[1754792651625,3.2078,4268.4,4268.0,2.0897]
[1754792651826,4.69853882,4268.3,4267.9,9.32679875]
[1754792652029,1.6067,4268.1,4268.0,9.32679875]
[1754792652226,1.3728,4268.1,4267.2,0.46857]
[1754792652427,4.5806,4269.2,4268.8,0.46838]
[1754792652727,0.5871,4269.8,4269.6,0.7539]
[1754792652925,0.5871,4269.8,4269.2,0.46834]
[1754792653132,3.07308393,4269.7,4269.1,16.23309444]
[1754792653325,3.07308393,4269.7,4269.2,1.5205]
[1754792653531,0.5871,4269.6,4269.2,9.32679875]
[1754792653829,0.5871,4269.5,4269.4,0.7539]
[1754792654030,4.69800961,4269.5,4269.4,7.66579875]
[1754792655528,4.46410961,4269.5,4269.4,7.66579875]
[1754792655931,3.2078,4269.9,4269.6,0.4683]
[1754792656132,3.2078,4269.9,4269.8,2.0897]
[1754792656437,2.98270449,4269.8,4269.7,7.66579875]
[1754792656624,2.98270449,4269.9,4269.3,7.66579875]
[1754792656824,2.98270449,4270.0,4269.5,0.46831]
[1754792657028,0.005,4270.1,4270.0,2.55796]
[1754792657228,3.2078,4270.6,4270.5,2.0897]
[1754792657430,3.2078,4271.2,4270.6,0.7539]
[1754792657629,3.2078,4271.2,4270.8,2.0897]
[1754792657830,2.98256389,4271.1,4270.7,14.57209444]
[1754792658128,2.98256389,4271.1,4270.4,0.46821]
[1754792658129,2.98256389,4271.1,4271.0,0.7539]
[1754792658331,2.98256389,4271.1,4270.5,7.66579875]
[1754792658528,3.2078,4270.7,4270.5,7.66579875]
[1754792658742,3.2078,4270.7,4270.6,8.41969875]
[1754792658929,3.2078,4270.7,4270.6,0.7539]
[1754792659129,6.21128031,4270.7,4270.6,8.41969875]
[1754792659328,3.2078,4271.2,4270.7,0.46818]
[1754792659531,3.2078,4271.2,4270.7,15.04027444]
[1754792659727,6.21128031,4271.2,4270.9,1.5205]
[1754792659939,6.21128031,4271.2,4271.0,1.5205]
[1754792660238,6.21128031,4271.2,4271.1,0.7539]
[1754792660434,6.21128031,4271.2,4271.1,8.41969875]
[1754792660731,3.2078,4271.2,4271.1,66.54769875]
[1754792661138,0.0049,4271.9,4271.2,0.46813]
[1754792661139,3.2127,4271.9,4271.2,0.46813]
[1754792661338,3.2127,4271.9,4271.2,15.04022444]
[1754792661534,3.01209616,4271.8,4271.4,2.0897]
[1754792661833,3.01209616,4271.8,4271.4,0.4681]
[1754792662034,3.2078,4271.9,4271.7,0.46807]
[1754792662235,3.2078,4271.9,4271.8,16.66179444]
[1754792662739,3.2078,4271.9,4271.8,9.75549875]
[1754792663037,3.2078,4271.9,4271.8,66.54769875]
[1754792663338,3.2078,4272.4,4271.9,0.46805]
[1754792663531,3.2078,4272.4,4272.3,0.7539]
[1754792663834,3.00319256,4272.7,4272.4,0.468]
[1754792664039,3.2078,4273.1,4272.6,0.46797]
[1754792664234,3.2078,4273.1,4272.5,15.04007444]
[1754792664435,3.9935,4273.1,4272.8,0.46795]
[1754792664629,3.2078,4273.1,4272.9,2.0897]
[1754792664839,3.2078,4273.6,4273.2,1.3358]
[1754792665035,3.2078,4273.6,4273.3,7.66579875]
[1754792665228,3.2078,4273.6,4273.5,2.0897]
[1754792665428,3.2078,4273.6,4273.5,0.7539]
[1754792665633,3.2078,4273.6,4273.5,8.41969875]
[1754792666037,3.7084,4273.6,4273.5,8.41969875]
[1754792666238,4.4941,4273.6,4273.5,8.41969875]
[1754792666738,3.2078,4273.6,4273.5,8.41969875]
[1754792666937,4.4941,4274.2,4273.6,2.0897]
[1754792667134,0.46783,4273.9,4273.6,8.23499875]
[1754792667330,0.46783,4273.9,4273.7,7.66579875]
[1754792667534,0.46783,4273.9,4273.8,0.7539]
[1754792667744,0.46783,4273.9,4273.8,8.41969875]
[1754792668337,0.46782,4274.0,4273.8,7.66579875]
[1754792668536,3.66212099,4274.1,4273.9,7.66579875]
[1754792668840,3.66212099,4274.1,4274.0,8.41969875]
[1754792669033,3.66212099,4274.1,4274.0,0.7539]
[1754792669236,3.66212099,4274.1,4274.0,8.41969875]
[1754792670636,4.94842099,4274.1,4274.0,7.66579875]
[1754792671537,4.94842099,4274.1,4274.0,8.41969875]
[1754792672340,0.61998529,4274.1,4274.0,66.54769875]
[1754792672544,3.2078,4274.2,4274.1,2.55751]
[1754792672741,0.005,4274.3,4274.2,2.0897]
[1754792673047,0.005,4274.3,4274.2,16.66179444]
[1754792673339,0.005,4274.3,4274.2,73.45399444]
[1754792673542,0.005,4274.3,4274.2,15.89519444]
[1754792673740,1.2913,4274.3,4274.2,8.41969875]
[1754792674342,4.4991,4274.3,4274.2,8.41969875]
[1754792674541,3.2128,4274.3,4274.2,8.41969875]
[1754792674841,3.2128,4274.3,4274.2,65.97849875]
[1754792675245,3.2128,4274.3,4274.2,67.03449875]
[1754792675839,3.2128,4274.3,4274.2,73.94079444]
[1754792676037,3.7128,4274.3,4274.2,74.44079444]
[1754792676248,3.7128,4274.3,4274.2,17.64859444]
[1754792677349,4.93383514,4274.3,4274.2,73.39389444]
[1754792677542,5.75519593,4274.3,4274.2,74.44079444]
[1754792677743,5.13521064,4274.3,4274.2,74.44079444]
[1754792678146,5.75519593,4274.3,4274.2,74.44079444]
[1754792678346,6.08733359,4274.3,4274.2,8.91969875]
[1754792678741,1.33513359,4274.3,4274.2,74.44079444]
[1754792678938,1.12498529,4274.3,4274.2,103.09779444]
[1754792679139,1.21497892,4274.5,4274.3,2.6172]
[1754792679449,1.83879023,4275.0,4274.8,2.6172]
[1754792679650,1.83879023,4275.0,4274.9,14.57209444]
[1754792679851,2.46543396,4275.0,4274.9,9.52349569]
[1754792680050,0.83679203,4275.0,4274.9,17.18929444]
[1754792680349,2.46543396,4275.0,4274.9,17.18929444]
[1754792680746,0.83679203,4275.0,4274.9,73.98149444]
[1754792680943,0.62664373,4275.0,4274.9,73.98149444]
[1754792681250,2.42924193,4275.3,4275.1,1.8415]
[1754792681450,1.0107483,4275.2,4275.1,1.0469]
[1754792681653,1.0107483,4275.2,4275.0,0.7757]
[1754792681654,1.5224,4275.1,4275.0,0.7757]
[1754792681852,1.7325483,4275.1,4275.0,0.7757]
[1754792682152,1.7325483,4275.1,4275.0,16.14239444]
[1754792682347,8.82362926,4275.1,4275.0,7.66579875]
[1754792682552,9.33762926,4275.1,4275.0,4.50683936]
[1754792682753,8.82362926,4275.1,4275.0,4.50683936]
[1754792682955,3.8856483,4275.1,4275.0,7.12403936]
[1754792683154,5.51100179,4275.1,4275.0,63.91623936]
[1754792683353,3.8856483,4275.1,4275.0,63.91623936]
[1754792683550,4.6862483,4275.1,4275.0,63.91623936]
[1754792683743,5.7409483,4275.1,4275.0,62.09363936]
[1754792684350,5.2732483,4275.1,4275.0,4.50683936]
[1754792684551,5.7886233,4275.1,4275.0,4.50683936]
[1754792684747,5.2746233,4275.1,4275.0,4.50683936]
[1754792684944,3.4193233,4275.1,4275.0,7.12403936]
[1754792685252,3.4193233,4275.1,4275.0,70.82253505]
[1754792685452,3.4193233,4275.1,4275.0,70.64704055]
[1754792686449,0.2115233,4275.1,4275.0,70.64704055]
[1754792686649,0.2115233,4275.2,4275.0,70.64704055]
[1754792686852,0.2115233,4275.4,4275.2,0.46769]
[1754792687043,0.2115233,4275.3,4275.2,1.24339]
[1754792687448,0.2115233,4275.3,4275.2,69.27323055]
[1754792687649,0.2115233,4275.3,4275.2,71.11473055]
[1754792689459,1.8415743,4275.3,4275.2,71.11473055]
[1754792689660,0.2115233,4275.3,4275.2,71.11473055]
[1754792690359,1.8415743,4275.3,4275.2,66.31569569]
[1754792690561,1.8415743,4275.3,4275.2,70.64704055]
[1754792690759,1.8415743,4275.3,4275.2,71.14704055]
[1754792691160,0.2115233,4275.3,4275.2,71.14704055]
[1754792691362,2.6421743,4275.3,4275.2,71.14704055]
[1754792692263,0.8006,4275.3,4275.2,71.14704055]
[1754792692564,1.8553,4275.3,4275.2,71.14704055]
[1754792692763,3.49295193,4275.3,4275.2,71.14704055]
[1754792692962,1.63765193,4275.3,4275.2,71.14704055]
[1754792693161,0.60546923,4275.3,4275.2,71.14704055]
[1754792693359,0.2115233,4275.6,4275.5,0.46766]
[1754792693553,0.005,4275.7,4275.5,41.45690055]
[1754792693761,0.005,4275.7,4275.6,13.85484055]
[1754792694266,0.005,4275.7,4275.6,63.74074486]
[1754792694561,3.4193233,4276.6,4275.6,67.12354486]
[1754792694756,3.2078,4276.6,4275.7,13.85484055]
[1754792694963,3.2078,4276.6,4276.5,9.52349569]
[1754792695364,4.41786955,4277.2,4276.6,0.46754]
[1754792695557,1.8553,4277.1,4276.9,0.4675]
[1754792695868,2.80056955,4277.1,4277.0,1.8415]
[1754792696066,0.95596955,4277.1,4277.0,2.6172]
[1754792696268,4.0084,4277.2,4277.1,1.8415]
[1754792696564,5.853,4277.2,4277.1,4.33134486]
[1754792696758,6.00836955,4277.2,4277.1,4.33134486]
[1754792696963,0.46754,4276.6,4276.2,0.7946]
[1754792697162,1.0547,4276.4,4276.3,0.7946]
[1754792697763,3.2078,4276.5,4276.3,2.6172]
[1754792697964,3.2078,4276.5,4276.4,9.52349569]
[1754792698471,4.2625,4276.5,4276.4,2.6172]
[1754792699766,4.2625,4276.5,4276.4,9.52349569]
[1754792702869,3.2078,4277.0,4276.4,91.21949569]
[1754792703171,3.2078,4277.0,4276.9,9.52349569]
[1754792703366,0.46744,4277.5,4277.1,2.6172]
[1754792703675,0.46744,4277.5,4277.3,2.6172]
[1754792703869,0.46744,4277.5,4277.4,2.6172]
[1754792704274,0.46744,4277.5,4277.4,9.52349569]
[1754792705270,0.46748,4277.1,4275.7,0.16859279]
[1754792705475,1.64599,4277.0,4276.9,0.005]
[1754792706175,5.26049519,4277.0,4276.9,0.005]
[1754792706475,5.41103009,4277.0,4276.9,0.005]
[1754792709578,5.41103009,4277.0,4276.9,0.7762]
[1754792710179,1.18629879,4277.0,4276.9,66.40219569]
[1754792710475,0.46749,4277.0,4276.9,66.40219569]
[1754792710670,0.71880879,4277.4,4277.0,2.6987]
[1754792710876,3.2078,4277.6,4277.4,2.6987]
[1754792711076,3.2078,4277.6,4277.4,0.5]
[1754792711277,3.2078,4277.6,4277.5,9.60499569]
[1754792712381,3.2078,4277.6,4277.5,66.39719569]
[1754792716182,3.2078,4278.1,4277.8,0.46741]
[1754792716480,3.2078,4278.1,4278.0,0.46738]
[1754792716677,3.2331,4278.1,4278.0,0.7712]
[1754792716879,7.41749134,4278.1,4278.0,0.7712]
[1754792717282,7.56826047,4278.1,4278.0,0.7712]
[1754792717679,7.56826047,4278.1,4278.0,1.6327]
[1754792717982,7.56826047,4278.1,4278.0,0.7712]
[1754792718179,0.46743,4277.6,4277.5,0.7712]
[1754792718485,4.85373,4277.6,4277.5,0.7712]
[1754792718786,1.64598,4277.1,4277.0,0.7712]
[1754792719280,1.1785,4277.1,4277.0,0.7712]
[1754792719583,0.46746,4277.3,4277.0,65.62599569]
[1754792719783,3.2078,4277.6,4277.2,2.6987]
[1754792719981,3.02414202,4277.5,4277.1,6.90629569]
[1754792720176,0.15079171,4277.5,4277.2,2.6987]
[1754792720382,3.2078,4277.6,4277.5,3.1987]
[1754792720784,3.2078,4277.6,4277.5,10.10499569]
[1754792721179,3.77731138,4278.1,4277.8,0.4674]
[1754792721379,3.2078,4278.1,4278.0,3.16608]
[1754792721581,3.2078,4278.1,4278.0,10.07237569]
[1754792721886,3.2078,4278.7,4278.2,0.46736]
[1754792722086,3.2078,4278.7,4278.3,2.6987]
[1754792722280,3.2078,4278.7,4278.4,1.8372]
[1754792722476,3.67512,4278.7,4278.5,2.6987]
[1754792722686,3.2078,4278.7,4278.6,2.6987]
[1754792722882,3.2078,4278.7,4278.6,9.60499569]
[1754792723090,3.2078,4278.7,4278.6,2.6987]
[1754792723385,0.46732,4278.6,4278.2,27.6105]
[1754792723582,3.2078,4278.7,4278.6,9.60499569]
[1754792723988,3.2078,4278.7,4278.6,2.6987]
[1754792725085,3.2078,4278.7,4278.6,86.1669]
[1754792725487,3.2078,4279.2,4278.8,2.6987]
[1754792725684,2.0043,4279.1,4278.9,0.7712]
[1754792725984,2.0043,4279.0,4278.9,7.67749569]
[1754792726480,2.7515,4279.0,4278.6,26.676]
[1754792726686,0.7472,4278.9,4278.7,7.67749569]
[1754792726883,2.0043,4278.8,4278.7,7.67749569]
[1754792727085,2.0043,4278.8,4278.7,0.7712]
[1754792727283,2.0043,4278.8,4278.7,9.60499569]
[1754792728185,0.15079171,4279.1,4278.7,6.90629569]
[1754792728386,3.2078,4279.2,4279.1,2.6987]
[1754792728692,3.02271869,4279.0,4278.8,6.90629569]
[1754792728887,0.4673,4278.8,4278.6,7.67749569]
[1754792729193,2.0043,4278.9,4278.8,2.6987]
[1754792729389,0.15079171,4279.1,4279.0,1.6327]
[1754792729689,3.2078,4279.2,4279.0,9.60499569]
[1754792729888,3.2078,4279.2,4279.1,9.60499569]
[1754792730281,3.2078,4279.2,4279.1,2.6987]
[1754792730691,3.2078,4279.2,4279.1,59.4909]
[1754792731187,1.30399171,4279.6,4279.2,0.46725]
[1754792731391,0.8511,4279.6,4279.3,1.9275]
[1754792731593,2.0043,4279.5,4279.4,2.6987]
[1754792731797,2.0043,4279.5,4279.4,9.60499569]
[1754792731990,2.7515,4279.3,4279.0,0.7712]
[1754792732191,2.7515,4279.1,4278.6,27.1442]
[1754792732391,3.21878,4279.0,4278.7,0.7712]
[1754792732589,3.2078,4279.3,4278.7,0.7712]
[1754792732590,0.15063504,4279.1,4278.7,6.90629569]
[1754792732784,3.2078,4279.3,4279.2,9.60499569]
[1754792732988,3.2078,4279.3,4279.2,35.95999569]
[1754792733693,0.15063504,4279.8,4279.3,3.16594]
[1754792733888,2.0043,4279.8,4279.3,7.37353569]
[1754792734089,0.4672,4279.7,4279.6,0.7712]
[1754792734488,0.46719,4279.8,4279.6,0.7712]
[1754792734795,2.0043,4279.8,4279.7,7.67749569]
[1754792734989,3.06114563,4280.0,4279.9,0.46718]
[1754792735289,0.8178,4280.4,4280.0,2.41197]
[1754792735485,1.855,4280.3,4280.2,2.6907]
[1754792735792,2.00577354,4280.6,4280.4,2.6907]
[1754792735991,3.2078,4280.7,4280.1,6.90629569]
[1754792735992,3.2078,4280.7,4280.5,0.46711]
[1754792736189,3.2078,4280.7,4280.6,9.59699569]
[1754792736390,5.0628,4280.7,4280.6,0.7459]
[1754792736590,5.0628,4280.7,4280.6,57.5381]
[1754792736800,3.2078,4280.7,4280.6,59.4829]
[1754792737290,3.2078,4280.7,4280.6,85.6939]
[1754792737694,3.2078,4281.2,4281.0,0.46705]
[1754792737889,3.2078,4281.2,4281.1,9.59699569]
[1754792738396,5.0628,4281.2,4281.1,0.7459]
[1754792739887,0.46705,4281.1,4280.6,26.165]
[1754792740093,1.855,4281.0,4280.9,0.7459]
[1754792740591,1.855,4281.0,4280.9,6.90629569]
[1754792740791,1.855,4280.5,4280.4,0.7459]
[1754792741090,2.32208,4280.8,4280.7,0.7459]
[1754792741293,1.855,4281.1,4280.6,0.8416]
[1754792741489,0.46706,4281.0,4280.7,1.9448]
[1754792741695,2.32206,4281.0,4280.8,2.6907]
[1754792741897,5.0628,4281.2,4281.0,2.6907]
[1754792742193,5.52984,4281.2,4281.1,0.7459]
[1754792742392,5.0628,4281.2,4281.1,2.6907]
[1754792747104,6.8605,4281.2,4281.1,4.4652]
[1754792747402,6.8605,4281.2,4279.3,1.40405489]
[1754792747403,3.2078,4278.6,4272.0,3.2078]
[1754792747593,23.36734,4278.4,4271.1,3.59945294]
[1754792747793,33.647,4274.9,4267.4,0.7459]
[1754792748096,4.17080268,4268.8,4267.7,0.7459]
[1754792748294,3.2078,4267.8,4266.5,33.647]
[1754792748495,3.2078,4269.0,4268.4,9.50571574]
[1754792748807,1.28624,4269.3,4267.7,0.7459]
[1754792748808,3.2078,4268.7,4267.7,0.7459]
[1754792749195,3.2078,4268.7,4267.8,27.381]
[1754792749502,3.2078,4268.7,4267.9,0.7459]
[1754792749702,3.06290185,4268.6,4267.9,0.7459]
[1754792749901,3.35985965,4268.6,4267.9,42.8379]
[1754792750102,3.35985965,4268.6,4268.0,0.8416]
[1754792750502,3.57954999,4268.6,4267.9,42.092]
[1754792750806,3.57954999,4268.6,4268.0,2.6907]
[1754792751011,1.855,4268.5,4267.4,0.7459]
[1754792751215,0.46851,4267.7,4266.7,0.7459]
[1754792751408,1.855,4267.6,4266.7,0.7459]
[1754792751601,4.90512571,4267.6,4266.7,74.61691272]
[1754792751809,0.8231,4267.6,4266.7,74.61691272]
[1754792752011,3.51865571,4267.5,4266.8,42.092]
[1754792752309,0.18820034,4267.9,4266.9,44.7827]
[1754792752504,0.18820034,4267.9,4267.4,3.2078]
[1754792752709,0.46825,4270.0,4268.1,0.7459]
[1754792753006,0.46825,4270.0,4267.4,3.2078]
[1754792753007,3.09505772,4270.0,4269.7,0.7459]
[1754792753206,3.09505772,4270.0,4269.9,5.7912]
[1754792753412,0.46822,4270.4,4269.9,4.7953]
[1754792753604,1.99018838,4270.2,4270.0,9.34090001]
[1754792753804,1.855,4270.1,4270.0,9.34090001]
[1754792754001,1.0319,4270.0,4269.9,3.2078]
[1754792754311,4.02421553,4270.0,4269.9,2.7078]
[1754792754605,1.99018838,4270.2,4269.9,70.66950584]
[1754792754805,1.99018838,4270.5,4270.0,9.34090001]
[1754792755011,1.99018838,4270.5,4270.1,1.5875]
[1754792755212,1.99018838,4270.5,4270.3,2.5834]
[1754792755213,2.99231553,4270.5,4270.3,2.5834]
[1754792755408,1.99018838,4271.1,4270.5,2.5834]
[1754792755612,3.2078,4271.2,4270.7,2.5834]
[1754792755814,3.01051695,4271.1,4270.8,0.9959]
[1754792756112,3.01051695,4271.1,4271.0,0.7459]
[1754792756308,3.01051695,4271.1,4271.0,2.5834]
[1754792756511,0.8179,4271.8,4271.0,9.34090001]
[1754792756701,1.855,4271.5,4271.1,9.34090001]
[1754792756906,1.58689978,4271.2,4271.1,76.55670585]
[1754792757107,3.07007776,4271.4,4271.1,1.5875]
[1754792757108,0.59099978,4271.4,4271.1,1.5875]
[1754792757308,2.97405124,4271.5,4271.2,9.34090001]
[1754792757507,2.97405124,4271.5,4271.1,67.21580584]
[1754792757508,3.2078,4273.2,4271.3,9.80901001]
[1754792757704,3.2078,4273.7,4272.8,1.5875]
[1754792758014,2.6732,4273.6,4272.7,3.2078]
[1754792758315,0.46787,4273.5,4272.8,9.34590001]
[1754792758513,0.468,4272.3,4271.6,3.2078]
[1754792758714,1.18906369,4271.9,4271.8,0.7459]
[1754792759009,0.8182,4273.1,4271.8,0.7459]
[1754792759010,3.07044403,4272.2,4272.1,0.8416]
[1754792759214,1.0319,4273.0,4272.1,5.8985]
[1754792759411,3.03003064,4272.6,4272.3,2.6907]
[1754792759611,1.49983,4273.0,4272.3,0.8416]
[1754792759816,1.49983,4273.0,4272.4,4.32620001]
[1754792759817,3.03003064,4272.5,4272.4,4.32620001]
[1754792760113,0.46798,4272.6,4272.4,0.7459]
[1754792760415,1.49988,4272.6,4272.5,4.32620001]
[1754792760710,5.37010281,4272.6,4272.5,4.32620001]
[1754792762316,5.37010281,4272.6,4272.5,1.42685001]
[1754792763718,4.33820281,4272.6,4272.5,3.27595001]
[1754792763917,4.33820281,4272.6,4272.5,4.11755001]
[1754792764119,3.87022281,4272.6,4272.5,67.65760585]
[1754792764414,0.81400155,4272.6,4272.5,67.65760585]
[1754792764615,0.81400155,4272.6,4272.5,68.15760585]
[1754792765122,2.00253304,4272.6,4272.5,68.15760585]
[1754792765521,0.81400155,4272.6,4272.5,68.15760585]
[1754792765724,1.18971278,4272.9,4272.6,1.42685001]
[1754792766023,0.4679,4273.2,4273.0,2.159]
[1754792766229,0.4679,4273.3,4273.2,2.159]
[1754792766523,3.46964797,4273.3,4273.2,2.159]
[1754792766716,3.46964797,4273.3,4273.2,3.58585001]
[1754792767021,3.46964797,4273.3,4273.2,4.86535001]
[1754792768117,0.46788,4273.5,4273.3,3.4385]
[1754792768316,1.58918056,4273.8,4273.4,0.46788]
[1754792768518,3.2078,4274.2,4273.4,0.46788]
[1754792768519,0.46781,4274.1,4273.6,2.159]
[1754792768722,3.6806,4274.2,4273.8,3.4385]
[1754792769018,2.99926809,4274.1,4274.0,3.4385]
[1754792769221,0.005,4274.2,4273.8,3.4385]
[1754792769519,0.005,4274.2,4273.8,0.46784]
[1754792769715,0.005,4274.2,4274.0,0.7963]
[1754792769915,0.005,4274.2,4274.1,3.4385]
[1754792770320,0.005,4274.2,4274.1,4.86535001]
[1754792770913,4.79698056,4274.9,4274.1,4.86535001]
[1754792771118,2.05686056,4275.3,4274.5,2.0758]
[1754792771319,1.58918056,4275.2,4274.6,3.58585001]
[1754792771518,1.58918056,4275.2,4274.7,0.7963]
[1754792771819,3.47516832,4275.1,4274.9,1.3627]
[1754792772020,0.46773,4274.8,4274.6,2.22315001]
[1754792772324,1.299,4274.7,4274.6,0.7963]
[1754792772714,4.85419213,4274.7,4274.6,2.22315001]
[1754792773414,0.4464,4274.3,4273.2,0.7963]
[1754792773618,1.60411003,4273.7,4273.1,0.46791]
[1754792773919,1.60411003,4273.7,4273.4,3.4385]
[1754792774122,2.07197003,4273.6,4273.4,3.4385]
[1754792774323,3.5632836,4273.6,4273.5,0.7963]
[1754792774524,0.46786,4273.6,4273.5,0.7963]
[1754792774823,3.5632836,4273.6,4273.5,0.7963]
[1754792775821,3.5632836,4273.6,4273.4,1.3627]
[1754792776016,1.61295121,4273.5,4273.4,1.3627]
[1754792776217,1.61352529,4273.5,4273.4,1.1039433]
[1754792776418,3.06663765,4273.5,4273.4,1.1039433]
[1754792776820,3.06663765,4273.5,4273.4,2.4666433]
[1754792777222,3.06663765,4273.5,4273.4,2.37886087]
[1754792777417,0.46788,4273.4,4272.8,3.2078]
[1754792777620,2.03151574,4273.2,4272.8,3.2078]
[1754792777815,0.94166228,4273.1,4272.9,0.7963]
[1754792778022,0.94166228,4273.0,4272.9,0.7963]
[1754792778428,0.94166228,4273.0,4272.9,1.26424]
[1754792778917,0.94166228,4273.0,4272.9,0.7963]
[1754792779421,0.94166228,4273.0,4272.9,3.4385]
[1754792780025,0.94166228,4273.0,4272.9,64.88201216]
[1754792780233,0.46776,4274.6,4273.1,1.3627]
[1754792780526,3.01452622,4274.3,4274.2,2.159]
[1754792780926,5.55832622,4274.5,4274.0,0.46782]
[1754792781130,1.63044732,4274.2,4274.1,3.4385]